[Event "44th Chess Olympiad Open 2022"]
[Site "Chennai"]
[Date "2022.08.08"]
[Round "10.1"]
[White "Praggnanandhaa R"]
[Black "Sindarov, Javokhir"]
[Result "1-0"]
[ECO "E95"]
[WhiteElo "2648"]
[BlackElo "2629"]
[Annotator "TA"]
[PlyCount "153"]
[EventDate "2022.07.29"]
[EventType "team-tourn"]
[EventCountry "IND"]
[SourceTitle "playchess.com"]
[Source "ChessBase"]
[SourceQuality "1"]
[WhiteTeam "India"]
[BlackTeam "Uzbekistan"]
[WhiteTeamCountry "IND"]
[BlackTeamCountry "UZB"]
[TimeControl "40/5400+30:1800+30"]

{[%evp 15,153,45,46,46,64,30,44,37,34,35,38,37,31,38,33,35,55,35,58,52,45,37,81,65,71,81,204,208,212,202,209,206,198,186,200,195,194,208,183,158,208,208,208,206,206,206,206,206,206,199,198,198,198,198,198,198,198,198,198,198,198,198,207,207,207,207,227,220,320,320,320,320,12832,12833,12846,12850,12850,29942,29939,29942,29948,29951,29954,29957,29959,29961,29959,29965,29961,29965,29967,29969,29968,29970,29970,29970,29970,29971,29971,29972,29972,29972,29975,29972,29972,29973,29973,29973,29972,29973,29973,29971,29972,29971,29971,0,29974,29976,29973,29972,29974,29975,29975,29976,29976,29977,29977,29978,29978,29979,29979,29980,29981,29982,29981,29983,29983,29983,29982,29983]} 1. d4 {[%emt 0:00:43]} Nf6 {[%emt 0:00:08]} 2. c4 {[%emt 0:00:06]} g6 {[%emt 0:00:05]} 3. Nc3 {[%emt 0:00:10]} Bg7 {[%emt 0:00:06]} 4. e4 {[%emt 0:00:08]} d6 {[%emt 0:00:03]} 5. Nf3 {[%emt 0:00:54]} O-O {[%emt 0:00:41]} 6. Be2 {[%emt 0:00:05]} e5 {[%emt 0:01:05]} 7. O-O {[%emt 0:00:08]} h6 {[%emt 0:00:30]} 8. Re1 {[%emt 0:01:08]} Nbd7 {[%emt 0:02:17]} 9. Qc2 {[%emt 0:01:13] E95: King's Indian: Classical: 7...Nbd7 8 Re1.} Re8 {[%emt 0:05:46] now supersedes 9...Nh7.} 10. dxe5 {[%emt 0:02:06] White is more active.} dxe5 {[%emt 0:02:12]} 11. Be3 {[%emt 0:00:30] White is slightly better.} c6 {[%emt 0:10:54] [#]} 12. Na4 $146 {[%emt 0:08:21]} ({Predecessor:} 12. h3 Nh5 13. c5 Nf4 14. Rad1 Qe7 15. Rd6 Nxe2+ 16. Qxe2 Nf6 17. b4 Nh5 18. b5 {1-0 (44) Praggnanandhaa,R (2648)-Urazayev,A (2430) Paracin 2022}) 12... Qc7 {[%emt 0:13:01]} 13. c5 {[%emt 0:12:11]} b5 {[%emt 0:02:23]} 14. cxb6 {[%emt 0:00:17]} axb6 {[%emt 0:00:06]} 15. h3 {[%emt 0:07:20]} Qb8 {[%emt 0:15:19]} 16. Red1 {[%emt 0:14:29]} b5 {[%emt 0:08:02]} 17. Nc5 {[%emt 0:03:17]} Nxc5 {[%emt 0:02:33]} 18. Bxc5 {[%emt 0:00:58]} Be6 {[%emt 0:04:27]} 19. Bd6 {[%emt 0:08:58]} Qb6 {[%emt 0:01:58]} 20. Bxe5 {[%emt 0:05:13] White now steadily converts the win.} Rxa2 {[%emt 0:12:56]} (20... b4 $16 {is a better defense.}) 21. Rxa2 $18 {[%emt 0:02:43]} Bxa2 {[%emt 0:00:15]} 22. Bxf6 {[%emt 0:05:40]} Bxf6 {[%emt 0:00:02]} 23. b3 $1 {[%emt 0:00:19]} Qa5 {[%emt 0:01:57]} 24. Qxc6 {[%emt 0:11:01]} Re6 {[%emt 0:00:06]} 25. Qc8+ {[%emt 0:01:01]} ({Less strong is} 25. Qxb5 Qxb5 26. Bxb5 Bxb3 $14) 25... Kg7 {[%emt 0:00:47]} 26. Qc2 {[%emt 0:03:52][%cal Oe4e5]} Qa3 {[%emt 0:01:14]} 27. e5 $1 {[%emt 0:01:16]} ({Inferior is} 27. Bxb5 Bxb3 28. Qd3 Rxe4 $1 $15) 27... Bxe5 {[%emt 0:00:25]} (27... Be7 $16) 28. Nxe5 {[%emt 0:01:06]} Rxe5 {[%emt 0:00:06]} 29. Qc3 {[%emt 0:00:55]} Qc5 {[%emt 0:01:15]} 30. Qb2 {[%emt 0:01:12]} Bxb3 {[%emt 0:00:16]} 31. Re1 {[%emt 0:00:50] And now Bxb5 would win.} Be6 {[%emt 0:05:07] Strongly threatening ...Kh7.} 32. Bg4 {[%emt 0:00:56]} Kf6 {[%emt 0:00:05]} 33. Kh2 $1 {[%emt 0:00:50]} g5 {[%emt 0:00:34] [#]} 34. g3 $1 {[%emt 0:00:26] Hoping for f4.} Bxg4 {[%emt 0:01:33] [#]} 35. f4 $1 {[%emt 0:00:33][%mdl 64] Pin} Bf5 {[%emt 0:01:28]} 36. Rxe5 {[%emt 0:04:59] White wants to mate with Re8+.} Qc2+ {[%emt 0:00:15]} 37. Qxc2 {[%emt 0:00:07] Really sharp!} Bxc2 {[%emt 0:00:02]} 38. Rxb5 {[%emt 0:00:32][%mdl 4096] Endgame KR-KB} Kg6 {[%emt 0:00:12]} 39. Rb4 {[%emt 0:00:57]} f6 {[%emt 0:01:08]} 40. Kg2 {[%emt 0:00:58]} Bd3 {[%emt 0:00:18]} 41. Kf2 {[%emt 0:09:08]} Ba6 {[%emt 0:01:55]} (41... h5 $142 42. Ke3 Bf5) 42. g4 {[%emt 0:05:57]} gxf4 {[%emt 0:00:42]} 43. Rxf4 {[%emt 0:00:29]} h5 $2 {[%emt 0:01:19]} (43... Bc8 44. Kg3 Be6) 44. gxh5+ {[%emt 0:00:28]} Kxh5 {[%emt 0:04:47]} 45. Rxf6 {[%emt 0:00:19]} Bd3 {[%emt 0:00:05]} 46. Kg3 {[%emt 0:00:46]} (46. Kf3 $18 Kg5 47. Rc6) 46... Bg6 {[%emt 0:00:23]} 47. Ra6 {[%emt 0:00:25]} Bd3 {[%emt 0:00:27]} 48. Ra5+ {[%emt 0:00:14]} Kh6 {[%emt 0:00:13]} 49. Kh4 {[%emt 0:00:47]} Kg6 {[%emt 0:00:22]} 50. Rg5+ {[%emt 0:00:19]} Kh6 {[%emt 0:00:23]} 51. Rd5 {[%emt 0:00:10]} Bc2 {[%emt 0:00:09]} 52. Rd6+ {[%emt 0:00:17]} Kg7 {[%emt 0:00:34]} 53. Kg5 {[%emt 0:00:17]} Bb1 {[%emt 0:00:08]} 54. Rd7+ {[%emt 0:00:45]} Kg8 {[%emt 0:00:22]} 55. Rc7 {[%emt 0:00:32]} Bd3 {[%emt 0:00:11]} 56. Kh6 {[%emt 0:01:13]} Bf5 {[%emt 0:00:33]} 57. Rg7+ {[%emt 0:02:38]} Kf8 {[%emt 0:00:03]} 58. Rg3 {[%emt 0:01:48]} Bc2 {[%emt 0:00:20]} 59. Rg2 {[%emt 0:04:44]} Be4 {[%emt 0:00:20]} 60. Rg1 {[%emt 0:01:12]} Kf7 {[%emt 0:00:58]} 61. Rg4 {[%emt 0:03:31]} Bd3 {[%emt 0:01:07]} 62. Rg3 {[%emt 0:00:54]} Bc2 {[%emt 0:00:21]} 63. Rg2 {[%emt 0:01:30]} Bd3 {[%emt 0:00:55]} 64. Rg7+ {[%emt 0:00:05]} Kf8 {[%emt 0:00:04]} 65. Rg3 {[%emt 0:00:02]} Bc2 $1 {[%emt 0:00:14]} 66. h4 {[%emt 0:02:03] White mates.} Kf7 {[%emt 0:00:11]} 67. Rc3 {[%emt 0:01:35]} Bb1 {[%emt 0:00:05]} 68. Rf3+ {[%emt 0:00:11]} Kg8 {[%emt 0:00:06]} 69. Rg3+ {[%emt 0:00:09]} Kf7 {[%emt 0:00:09]} 70. Rg7+ {[%emt 0:00:06]} Kf8 {[%emt 0:00:52]} 71. Rg5 {[%emt 0:00:19]} Kf7 {[%emt 0:12:55]} 72. Kh5 {[%emt 0:00:23]} Kf6 {[%emt 0:00:15]} 73. Kg4 {[%emt 0:00:22]} Bc2 {[%emt 0:00:29]} 74. h5 {[%emt 0:00:48][%cal Bh4h5,Bh5h6][%mdl 32]} Bd1+ {[%emt 0:00:17]} 75. Kf4 {[%emt 0:00:07]} Bc2 {[%emt 0:00:05]} 76. h6 {[%emt 0:00:29]} Bg6 {[%emt 0:00:14]} 77. Rg1 {[%emt 0:00:08] Weighted Error Value: White=0.01 (flawless) /Black=0.11 (very precise)} 1-0

[Event "44th Chess Olympiad Open 2022"]
[Site "Chennai"]
[Date "2022.08.08"]
[Round "10.1"]
[White "Yakubboev, Nodirbek"]
[Black "Sarin Nihal"]
[Result "1/2-1/2"]
[ECO "B11"]
[WhiteElo "2620"]
[BlackElo "2651"]
[Annotator "TA"]
[PlyCount "93"]
[EventDate "2022.07.29"]
[EventType "team-tourn"]
[EventCountry "IND"]
[SourceTitle "playchess.com"]
[Source "ChessBase"]
[SourceQuality "1"]
[WhiteTeam "Uzbekistan"]
[BlackTeam "India"]
[WhiteTeamCountry "UZB"]
[BlackTeamCountry "IND"]
[TimeControl "40/5400+30:1800+30"]

{[%evp 13,93,10,18,10,17,13,10,14,10,19,20,8,8,12,17,14,18,14,14,10,17,14,31,21,43,41,40,32,33,43,55,37,32,41,28,30,30,0,0,0,0,0,8,8,8,8,14,0,0,0,0,0,0,0,0,0,0,0,0,0,0,0,0,0,0,0,0,0,0,0,0,0,0,0,0,0,0,0,0,0,0,0]} 1. e4 {[%emt 0:00:06]} c6 {[%emt 0:00:29]} 2. Nf3 {[%emt 0:08:06]} d5 {[%emt 0:00:06]} 3. Nc3 {[%emt 0:00:44]} dxe4 {[%emt 0:00:25]} 4. Nxe4 {[%emt 0:00:25]} Nf6 {[%emt 0:00:06]} 5. Nxf6+ {[%emt 0:00:48]} exf6 {[%emt 0:00:06]} 6. Bc4 {[%emt 0:00:09]} Bd6 {[%emt 0:22:17]} 7. Qe2+ {[%emt 0:02:56]} Qe7 {[%emt 0:00:06]} 8. Qxe7+ {[%emt 0:00:08] B11: Caro-Kann: Two Knights Variation.} Kxe7 {[%emt 0:00:04]} 9. O-O {[%emt 0:00:11]} Re8 {[%emt 0:04:31] 9...Rd8 is becoming the main line.} 10. Re1+ {[%emt 0:09:37]} Kf8 {[%emt 0:00:07]} 11. Rxe8+ {[%emt 0:00:06]} Kxe8 {[%emt 0:00:02]} 12. d4 {[%emt 0:00:17]} Bf5 {[%emt 0:01:00]} 13. c3 {[%emt 0:01:47]} Nd7 {[%emt 0:10:58] [#]} 14. Bf1 $146 {[%emt 0:04:59]} ({Predecessor:} 14. Bd2 Kf8 15. a4 Nb6 16. Bb3 Be6 17. Bxe6 fxe6 18. b3 Nd7 19. Kf1 a6 20. Ke2 {½-½ (28) Jovanovic,Z (2508)-Berkes,F (2659) Schwarzach 2015}) 14... Be6 {[%emt 0:18:30]} 15. c4 {[%emt 0:03:58]} f5 {[%emt 0:04:29]} 16. b3 {[%emt 0:09:30]} Nf6 {[%emt 0:09:53]} 17. Bb2 {[%emt 0:00:12]} Be7 {[%emt 0:05:42]} 18. Re1 {[%emt 0:01:58]} h6 {[%emt 0:00:03]} 19. Bd3 {[%emt 0:01:41]} Rd8 {[%emt 0:07:51]} 20. Nh4 {[%emt 0:06:12]} f4 {[%emt 0:01:09]} 21. Bf5 {[%emt 0:22:02]} g5 {[%emt 0:03:36] [#]} 22. Ng6 {[%emt 0:00:19]} fxg6 {[%emt 0:01:39]} 23. Bxe6 {[%emt 0:00:06]} Kf8 {[%emt 0:00:03]} 24. g3 {[%emt 0:04:22]} Ne8 {[%emt 0:00:44]} 25. Re4 {[%emt 0:07:54]} Nd6 {[%emt 0:02:20] The position is equal.} 26. Re2 {[%emt 0:00:29]} Bf6 {[%emt 0:00:03]} 27. Kg2 {[%emt 0:02:16]} Nf5 {[%emt 0:02:14]} 28. Bxf5 {[%emt 0:07:22]} gxf5 {[%emt 0:00:04]} 29. gxf4 {[%emt 0:00:27]} Bxd4 $11 {[%emt 0:01:24][%mdl 4096] Endgame KRB-KRB} 30. Rd2 {[%emt 0:01:32]} Bf6 {[%emt 0:00:58]} 31. Rxd8+ {[%emt 0:01:08]} Bxd8 {[%emt 0:00:08]} 32. fxg5 {[%emt 0:00:26]} hxg5 {[%emt 0:00:07] KB-KB} 33. h3 {[%emt 0:00:25]} Bc7 {[%emt 0:04:22]} 34. Bc1 {[%emt 0:03:02]} g4 {[%emt 0:00:04]} 35. hxg4 {[%emt 0:00:24]} fxg4 {[%emt 0:00:05]} 36. f4 {[%emt 0:00:35]} gxf3+ $1 {[%emt 0:00:05]} 37. Kxf3 {[%emt 0:00:05]} Ke7 {[%emt 0:00:13]} 38. Ke4 $1 {[%emt 0:00:06]} Ke6 {[%emt 0:00:03]} 39. Be3 {[%emt 0:00:17]} a6 {[%emt 0:00:06]} 40. a4 {[%emt 0:00:06]} b5 {[%emt 0:00:08]} 41. axb5 {[%emt 0:30:25]} axb5 {[%emt 0:30:06]} 42. cxb5 {[%emt 0:00:21]} cxb5 {[%emt 0:00:05]} 43. Kd4 {[%emt 0:00:42]} Bb6+ {[%emt 0:00:06]} 44. Ke4 {[%emt 0:00:04]} Bc7 {[%emt 0:00:03]} 45. Kd4 {[%emt 0:00:05]} Bb6+ {[%emt 0:00:03]} 46. Ke4 {[%emt 0:00:05]} Bc7 {[%emt 0:00:03]} 47. Bc1 {[%emt 0:00:22] Weighted Error Value: White=0.03 (flawless) /Black=0.02 (flawless)} 1/2-1/2

[Event "44th Chess Olympiad Open 2022"]
[Site "Chennai"]
[Date "2022.08.08"]
[Round "10.2"]
[White "Durarbayli, Vasif"]
[Black "Petrosyan, Manuel"]
[Result "1/2-1/2"]
[ECO "C54"]
[WhiteElo "2638"]
[BlackElo "2610"]
[Annotator "TA"]
[PlyCount "105"]
[EventDate "2022.07.29"]
[EventType "team-tourn"]
[EventCountry "IND"]
[SourceTitle "playchess.com"]
[Source "ChessBase"]
[SourceQuality "1"]
[WhiteTeam "Azerbaijan"]
[BlackTeam "Armenia"]
[WhiteTeamCountry "AZE"]
[BlackTeamCountry "ARM"]
[TimeControl "40/5400+30:1800+30"]

{[%evp 10,105,26,30,25,12,25,20,18,14,14,2,11,7,14,22,12,0,31,29,34,25,41,41,46,35,42,56,70,38,56,5,14,17,12,0,0,-46,-34,-46,-39,-57,0,-100,-91,-103,-104,-154,0,0,0,0,0,0,-7,0,0,0,0,0,0,-75,-63,-109,-14,-15,-13,-13,0,0,0,0,0,0,0,0,0,0,0,0,0,0,0,0,0,0,0,0,0,0,0,0,0,0,0,0,0,-8]} 1. e4 {[%emt 0:00:04]} e5 {[%emt 0:02:10]} 2. Nf3 {[%emt 0:00:08]} Nc6 {[%emt 0:00:05]} 3. Bc4 {[%emt 0:00:06]} Bc5 {[%emt 0:00:29]} 4. O-O {[%emt 0:00:08]} Nf6 {[%emt 0:00:23]} 5. d3 {[%emt 0:00:05]} d6 {[%emt 0:00:53]} 6. c3 {[%emt 0:00:09]} a5 {[%emt 0:00:50] C54: Giuoco Piano: 4 c3 Nf6, main lines with 5 d4 and 5 d3.} 7. Re1 {[%emt 0:00:06]} Ba7 {[%emt 0:02:01]} 8. Nbd2 {[%emt 0:07:11][%cal Bb1d2,Bd2f1,Bf1g3][%mdl 32]} O-O {[%emt 0:01:49]} 9. h3 {[%emt 0:05:50]} Be6 {[%emt 0:10:57]} 10. Bb5 {[%emt 0:04:23]} Ne7 {[%emt 0:08:07]} 11. d4 {[%emt 0:01:32]} c6 {[%emt 0:01:24]} 12. Bd3 {[%emt 0:01:26]} Ng6 {[%emt 0:00:10]} 13. Nf1 {[%emt 0:03:20]} h6 {[%emt 0:04:04][%cal Oa5a4]} 14. Be3 {[%emt 0:08:24]} Re8 {[%emt 0:07:15]} 15. Ng3 {[%emt 0:05:18]} Qc7 {[%emt 0:00:20]} 16. a4 {[%emt 0:01:59]} Rad8 {[%emt 0:08:50]} 17. Qc2 {[%emt 0:02:55]} Bb8 {[%emt 0:05:51]} 18. Rad1 {[%emt 0:00:27]} (18. Rab1 {looks sharper.} d5 19. exd5 Bxd5 20. Bxg6 Bxf3 21. gxf3 fxg6 22. Qxg6 Qf7 23. Qxf7+ Kxf7 24. dxe5 Bxe5 25. f4) 18... Qc8 {[%emt 0:08:17] [#]} 19. b3 $146 {[%emt 0:08:03]} ({Predecessor:} 19. dxe5 dxe5 20. b4 axb4 21. cxb4 Bd6 22. Qb2 Qc7 23. b5 Ra8 24. Ra1 cxb5 25. axb5 Rxa1 26. Rxa1 {½-½ (44) Motylev,A (2651)-Nihal,S (2610) Douglas 2019}) 19... Qc7 {[%emt 0:13:41]} 20. b4 {[%emt 0:04:29]} (20. Kh1 $14) 20... axb4 $11 {[%emt 0:04:08]} 21. cxb4 {[%emt 0:00:05]} d5 $1 {[%emt 0:00:20]} 22. exd5 {[%emt 0:02:58]} (22. dxe5 {seems wilder.} Nxe5 23. Nxe5 dxe4 24. Nxe4 Nxe4 25. Bf4) 22... Bxd5 {[%emt 0:03:29] [#] Threatens to win with ...e4.} 23. Bxg6 {[%emt 0:00:43]} (23. Nxe5 $11 Nxe5 24. dxe5 Qxe5 25. Re2) 23... Bxf3 $15 {[%emt 0:00:16]} 24. gxf3 {[%emt 0:03:22][%cal Od4e5] dxe5! is the strong threat.} exd4 {[%emt 0:02:55]} 25. Bxh6 {[%emt 0:00:15]} gxh6 {[%emt 0:01:35]} (25... Rxe1+ $15 26. Rxe1 gxh6) 26. Qc4 {[%emt 0:14:56]} (26. Rxe8+ $1 $11 Nxe8 27. Bh7+ Kh8 28. Be4) 26... Nd5 $17 {[%emt 0:01:19]} 27. Rxe8+ {[%emt 0:04:00]} Rxe8 {[%emt 0:00:05]} 28. Bb1 {[%emt 0:00:04]} (28. Bc2 $142) 28... Nc3 {[%emt 0:03:09]} (28... Qe5 $17 {[%cal Od5e3] aiming for ...Ne3!} 29. Qc2 Kf8) 29. Rxd4 $11 {[%emt 0:03:22]} Ne2+ {[%emt 0:01:24]} ({But not} 29... Nxb1 30. Rg4+ (30. Qc1 f5 $11) 30... Kf8 31. Qc1 $14) 30. Nxe2 {[%emt 0:10:31]} Qh2+ {[%emt 0:00:06]} 31. Kf1 {[%emt 0:00:01]} Qxh3+ {[%emt 0:00:11]} 32. Ke1 $1 {[%emt 0:00:07]} Qh1+ {[%emt 0:00:04]} 33. Kd2 {[%emt 0:00:04] Intending Rg4+ and mate.} Qxb1 {[%emt 0:00:03]} 34. Rd7 {[%emt 0:02:07][%csl LRb7,LRf7] Chess con chili.} Qb2+ {[%emt 0:01:47]} 35. Kd1 {[%emt 0:01:40]} (35. Ke1 $1 $11 {keeps the balance.} Qf6 36. Qg4+ Kh8 37. Qd4) 35... Qf6 $17 {[%emt 0:00:33]} 36. Qg4+ {[%emt 0:01:31] [#]} (36. Rxb7 $15 Qxf3 37. Rd7) 36... Kh8 {[%emt 0:00:45]} (36... Kf8 $1 $17 {And now ...Qa1+ would win.} 37. Qd4 Be5) 37. Qd4 {[%emt 0:01:07] Inhibits Qa1+. Active counter play! The position is equal.} Be5 {[%emt 0:00:13]} 38. Qc4 {[%emt 0:01:28]} Rd8 {[%emt 0:04:01]} (38... Kg8 {keeps more tension.} 39. f4 Bc7 40. Qc3 Qe6) 39. Rxd8+ {[%emt 0:00:27]} Qxd8+ $11 {[%emt 0:00:02][%mdl 4096] Endgame KQB-KQN} 40. Ke1 {[%emt 0:00:12]} Qf6 {[%emt 0:01:32]} 41. f4 {[%emt 0:33:55]} Bd6 {[%emt 0:34:38]} 42. Kf1 {[%emt 0:00:57]} Kg8 {[%emt 0:00:00]} 43. b5 {[%emt 0:00:00]} cxb5 {[%emt 0:00:00]} 44. Qxb5 {[%emt 0:00:00]} Qe7 {[%emt 0:00:00]} 45. Qd5 {[%emt 0:00:00]} b6 {[%emt 0:00:00]} 46. Qc6 {[%emt 0:00:00]} Qc7 {[%emt 0:00:00]} 47. Qg2+ {[%emt 0:00:00]} Kh8 {[%emt 0:00:00]} 48. Qe4 {[%emt 0:00:00]} Kg8 {[%emt 0:00:00]} 49. Kg2 {[%emt 0:00:00]} Qe7 {[%emt 0:00:00]} 50. Qa8+ {[%emt 0:00:00]} Kh7 {[%emt 0:00:00]} 51. Qf3 {[%emt 0:00:00]} Qf6 {[%emt 0:00:00]} 52. Qd5 {[%emt 0:00:00]} Qe6 {[%emt 0:00:00]} 53. Qxe6 {[%emt 0:00:00] Weighted Error Value: White=0.12 (very precise) /Black=0.13 (very precise)} 1/2-1/2

[Event "44th Chess Olympiad Open 2022"]
[Site "Chennai"]
[Date "2022.08.08"]
[Round "10.2"]
[White "Melkumyan, Hrant"]
[Black "Guseinov, Gadir"]
[Result "1/2-1/2"]
[ECO "E94"]
[WhiteElo "2634"]
[BlackElo "2668"]
[Annotator "TA"]
[PlyCount "90"]
[EventDate "2022.07.29"]
[EventType "team-tourn"]
[EventCountry "IND"]
[SourceTitle "playchess.com"]
[Source "ChessBase"]
[SourceQuality "1"]
[WhiteTeam "Armenia"]
[BlackTeam "Azerbaijan"]
[WhiteTeamCountry "ARM"]
[BlackTeamCountry "AZE"]
[TimeControl "40/5400+30:1800+30"]

{[%evp 19,90,31,80,86,100,91,103,93,91,43,55,48,58,0,0,0,50,44,51,39,50,47,47,47,47,62,47,47,47,47,57,49,53,34,34,33,48,33,35,24,47,12,4,0,11,11,11,11,11,11,11,11,11,11,11,11,11,11,11,11,11,11,11,11,11,0,0,0,0,0,0,0,0]} 1. c4 {[%emt 0:00:07]} Nf6 {[%emt 0:00:43]} 2. Nc3 {[%emt 0:00:28]} g6 {[%emt 0:00:10]} 3. d4 {[%emt 0:00:17]} Bg7 {[%emt 0:00:07]} 4. e4 {[%emt 0:00:08]} d6 {[%emt 0:00:03]} 5. Be2 {[%emt 0:00:08]} O-O {[%emt 0:00:06]} 6. Nf3 {[%emt 0:00:09]} e5 {[%emt 0:00:06]} 7. O-O {[%emt 0:00:13]} exd4 {[%emt 0:00:11]} 8. Nxd4 {[%emt 0:00:09]} Re8 {[%emt 0:00:06]} 9. f3 {[%emt 0:00:16]} c6 {[%emt 0:00:05]} 10. Kh1 {[%emt 0:00:36]} d5 {[%emt 0:00:19] 10...Nh5 is not played anymore.} (10... Nbd7 $14 {feels stronger.}) 11. cxd5 $16 {[%emt 0:00:26] E94: King's Indian: Classical: 6 Be2 e5 7 0-0: Various Black 7th moves.} cxd5 {[%emt 0:00:03]} 12. Bg5 {[%emt 0:00:21] White is more active.} Nc6 {[%emt 0:00:34] [#]} 13. Bb5 $1 {[%emt 0:00:29] White is better.} h6 {[%emt 0:00:08]} 14. Bxf6 {[%emt 0:00:19]} (14. Nxc6 $16 bxc6 15. Bxc6 hxg5 16. Bxa8) 14... Qxf6 $14 {[%emt 0:00:14]} 15. exd5 {[%emt 0:00:31][%cal Rd4c6]} Qxd4 {[%emt 0:00:04]} 16. Qxd4 {[%emt 0:02:07]} (16. dxc6 $14 Rf8 17. Qxd4 Bxd4 18. Rfd1 Bxc3 19. bxc3) 16... Bxd4 $11 {[%emt 0:00:13]} 17. dxc6 {[%emt 0:00:08]} Rf8 {[%emt 0:00:06]} (17... Re5 $11 18. Ba4 Bxc3 19. cxb7 {[#]} (19. bxc3 bxc6 20. Bxc6 Rb8 $11) 19... Bxb7 $1 20. bxc3 Rc8) 18. Rfd1 {[%emt 0:01:07] [#]} Be5 $146 {[%emt 0:01:14]} ({Predecessor:} 18... Bxc3 19. cxb7 Rb8 20. bxc3 Rxb7 21. c4 Rc7 22. Rd4 a6 23. Ba4 Be6 24. Bb3 a5 {½-½ (82) King,A (2279)-Paragua,M (2502) Philadelphia 2021}) 19. Re1 {[%emt 0:00:27]} Bf6 {[%emt 0:02:17]} 20. c7 {[%emt 0:06:33]} Bxc3 {[%emt 0:00:51]} 21. bxc3 {[%emt 0:00:10]} Be6 {[%emt 0:00:04]} 22. Rad1 {[%emt 0:00:56][%cal Oe1e6] Threatens to win with Rxe6!} Rac8 {[%emt 0:00:30]} 23. Bd7 {[%emt 0:00:07]} Rxc7 {[%emt 0:00:04]} 24. Bxe6 {[%emt 0:00:09]} fxe6 {[%emt 0:00:03]} 25. Rxe6 $14 {[%emt 0:00:08][%mdl 4096] Endgame KRR-KRR} Kh7 {[%emt 0:00:08]} 26. h3 {[%emt 0:10:46]} Rff7 {[%emt 0:17:02]} 27. Rd3 {[%emt 0:07:48]} Rc5 {[%emt 0:13:45]} 28. Kh2 {[%emt 0:17:30]} h5 {[%emt 0:09:30]} 29. Kg3 {[%emt 0:14:45]} Rfc7 {[%emt 0:02:55]} 30. Ree3 {[%emt 0:07:50]} Kh6 {[%emt 0:11:42] The position is equal.} 31. f4 {[%emt 0:01:53][%cal Bf3f4,Bf4f5][%mdl 32]} Ra5 {[%emt 0:01:48]} 32. Rd6 {[%emt 0:04:18]} Rxa2 {[%emt 0:21:52]} 33. Ree6 {[%emt 0:02:36]} h4+ {[%emt 0:00:25]} 34. Kh2 {[%emt 0:00:27]} Rg7 {[%emt 0:02:13]} 35. f5 {[%emt 0:00:15]} Rf2 {[%emt 0:01:34]} 36. Rxg6+ {[%emt 0:17:50]} Rxg6 {[%emt 0:00:09]} 37. Rxg6+ $11 {[%emt 0:00:23] KR-KR} Kh5 {[%emt 0:00:15]} 38. Rg7 {[%emt 0:00:07]} Rxf5 {[%emt 0:05:10]} 39. Rxb7 {[%emt 0:00:27]} a5 {[%emt 0:00:22][%cal Ba7a5,Ba5a4,Ba4a3][%mdl 32]} 40. c4 {[%emt 0:05:29]} Rf4 {[%emt 0:08:25]} 41. Rc7 {[%emt 0:31:08]} a4 {[%emt 0:08:00]} 42. g4+ {[%emt 0:00:00]} hxg3+ {[%emt 0:00:00]} 43. Kxg3 {[%emt 0:00:00]} Rd4 {[%emt 0:00:00]} 44. Kf3 {[%emt 0:00:00] Strongly threatening Ke3.} a3 {[%emt 0:00:00]} 45. Ra7 {[%emt 0:00:00]} Rxc4 {[%emt 0:00:00] Weighted Error Value: White=0.07 (flawless) /Black=0.07 (flawless)} 1/2-1/2